Cogmind - Beta 16.1 @@@ ROGUE MODE // 2026.05.03 @ 16:16:17 Player: f3-rnm Result: Destroyed by Golem with Assembled Focal Cannon Performance ------------- Evolutions (3) 1500 Regions Visited (11) 2200 Robots Destroyed (46) 230 Value Destroyed (1025) 1025 Prototype IDs (36) 720 Alien Tech Used (0) 0 Bonus (2181) 2181 TOTAL SCORE: 7856 Bonus ------- Follower Combat Kills 1301 Aligned with FarCom 300 Destroyed Z-Imprinter 1000 Friendly Fire -420 Cogmind --------- Core Integrity 0/700 Matter 280/300 Energy 77/290 System Corruption 0% Temperature Cool (45) Movement Hovering (140) Ox1 Location -7/Deep Caves Parts ------- > --- POWER (1) -------- Improved Deuterium Engine > --- PROPULSION (2) --- Carbon-fiber Leg Zionite Glidesys I > --- UTILITY (8) ------ Improved Heat Sink Coolant Injector Core Analyzer Reaction Control System Zionite Weapon Casing Zionite Weapon Casing > --- WEAPON (2) ------- Improved EM Shotgun Arc Projector > --- INVENTORY (5) ---- High-capacity Matter Pod (200) Proton Missile Launcher Peak State ------------ > --- POWER ------------ Heavy Ion Engine > --- PROPULSION ------- Compact Wheel > --- UTILITY ---------- Large Storage Unit Core Analyzer Army-in-a-Box > --- WEAPON ----------- Improved EM Shotgun Field Lobotomy Kit > --- INVENTORY -------- Light Nuclear Core Improved Deuterium Engine Micro Nuclear Core Carbon-fiber Leg Improved Heat Sink Coolant Injector High-capacity Matter Pod Improved Light Armor Plating Improved EM Shotgun Autogun Autogun Autogun Flak Gun Proton Missile Launcher Longsword +1 [Rating: 81] Favorites ----------- Power Heavy Ion Engine Engine Heavy Ion Engine Power Core Light Nuclear Core Reactor Zionite Light DM Reactor Propulsion Improved Aluminum Leg Treads Light Treads Leg Improved Aluminum Leg Wheel Compact Wheel Hover Unit Zionite Glidesys I Utility Core Analyzer Device Coolant Injector Storage Large Storage Unit Processor Core Analyzer Protection Improved Utility Shielding Weapon Improved EM Shotgun Energy Gun Improved EM Shotgun Energy Cannon Advanced Beam Cannon Ballistic Gun Barrage Gun Ballistic Cannon Advanced Assault Cannon Launcher Proton Missile Launcher Special Weapon Field Lobotomy Kit Slashing Weapon Longsword +1 Build | -11 -10 -10 -10 -9 -8 -8 -7 -7 -7 -7 -7 ------- Run | Yrd Mat Min Exi Min Mat Sto Fac Low Low Zio Dee Slots Evolved 6 | . . . . . 4 . 2 . . . . Power . | . . . . . . . . . . . . Propulsion . | . . . . . . . . . . . . Utility 6 | . . . . . 4 . 2 . . . . Weapon . | . . . . . . . . . . . . Parts Attached 90 | 6 1 6 2 5 15 18 6 2 6 8 15 Power 9 | 1 1 . . . 1 3 . . . . 3 Engine 6 | 1 1 . . . . 2 . . . . 2 Core 2 | . . . . . 1 1 . . . . . Reactor 1 | . . . . . . . . . . . 1 Propulsion 19 | 2 . 2 2 1 3 2 2 . 2 . 3 Treads 5 | 2 . 2 . . . . . . 1 . . Leg 11 | . . . 2 1 3 2 . . 1 . 2 Wheel 2 | . . . . . . . 2 . . . . Hover 1 | . . . . . . . . . . . 1 Flight . | . . . . . . . . . . . . Utility 26 | 1 . 2 . 1 5 2 4 . 1 4 6 Device 9 | . . . . . 1 1 1 . 1 2 3 Storage 4 | 1 . 1 . . . . 2 . . . . Processor 2 | . . . . . . 1 1 . . . . Hackware . | . . . . . . . . . . . . Protection 11 | . . 1 . 1 4 . . . . 2 3 Artifact . | . . . . . . . . . . . . Weapon 36 | 2 . 2 . 3 6 11 . 2 3 4 3 Energy Gun 10 | 1 . 1 . . 1 4 . . . . 3 Energy Cannon 2 | . . . . . 1 1 . . . . . Ballistic Gun 14 | 1 . 1 . 3 2 1 . 1 2 3 . Ballistic Cannon 2 | . . . . . 1 . . . . 1 . Launcher 6 | . . . . . . 5 . . 1 . . Special Weapon 1 | . . . . . . . . 1 . . . Impact Weapon . | . . . . . . . . . . . . Slashing Weapon 1 | . . . . . 1 . . . . . . Piercing Weapon . | . . . . . . . . . . . . Special Melee Weapon . | . . . . . . . . . . . . Unidentified Prototypes 13 | . . . . . 1 4 . . . . 8 Corrupted Parts 1 | . . . . . . 1 . . . . . System Corruption 10 | . . . . . . 10 . . . . . Parts Lost 26 | . . 1 . 2 3 7 1 1 2 . 9 Power 4 | . . . . 1 . 2 . . . . 1 Propulsion 9 | . . . . . 1 2 1 1 1 . 3 Utility 7 | . . . . 1 2 . . . . . 4 Weapon 6 | . . 1 . . . 3 . . 1 . 1 Highest Loss Streak 6 | . . 1 . 2 3 6 1 1 2 . 5 To Critical Strikes . | . . . . . . . . . . . . Average Backups 9 | 3 7 8 8 5 5 4 6 14 13 14 8 Power 1 | . 1 1 . . . . 1 2 3 2 1 Propulsion 1 | 1 3 3 3 . . . . . 1 2 1 Utility 2 | . . 1 1 2 2 1 1 4 2 3 1 Weapon 4 | . 1 2 2 2 2 2 2 6 6 7 3 Tool/Special . | . . . . . . . . . . . . Unused Backups 20 | . 5 . 4 . . . 1 . 1 1 8 Power 5 | . 1 . 1 . . . . . . 1 2 Propulsion 6 | . 4 . 1 . . . . . . . 1 Utility 3 | . . . 1 . . . . . . . 2 Weapon 6 | . . . 1 . . . 1 . 1 . 3 Tool/Special . | . . . . . . . . . . . . Average Slot Usage (%) 73 | . 85 94 99 75 90 53 53 53 58 80 96 Engine 6 | . 14 14 14 1 . 1 7 7 7 7 4 Treads 6 | . 28 28 22 . . . . . 3 7 1 Leg 7 | . . . 4 28 17 16 1 . 4 7 12 Wheel 1 | . . . . . . . 9 7 3 . . Device 11 | . . . . . . 9 11 7 8 21 29 Storage 7 | . 14 14 14 14 9 1 1 7 7 7 2 Processor 4 | . . . . . . 1 4 7 7 7 7 Protection 6 | . . 8 14 2 37 4 . . . 3 17 Energy Gun 7 | . 14 13 14 2 2 9 12 7 3 . 10 Ballistic Gun 8 | . 14 14 14 25 5 2 . 5 10 11 1 Peak Build Rating 81 | 6 8 10 18 18 35 73 80 81 73 45 66 Average Rating 42 | 4 6 9 12 14 31 58 73 74 25 37 53 On Entrance 32 | . 6 8 10 18 16 30 67 79 73 32 45 Avg Prop Armor Cover (%) 5 | . . . . . . . 3 . 7 5 4 Naked Turns 1 | . . . . . . 1 . . . . . Heaviest Build 119 | 10 14 24 24 24 38 94 114 119 114 48 48 Greatest Support 40 | 40 40 40 40 26 26 20 32 16 30 30 31 Greatest Overweight (x) 26 | . . . 1 . 2 26 6 7 7 1 7 Average Overweight (x) 1 | . . . . . . 3 4 7 1 1 . Largest Inventory Capacity 15 | 8 8 10 10 10 10 10 15 15 15 15 15 Average Capacity 10 | 7 8 8 10 10 10 5 6 15 15 15 8 Most Carried 15 | 6 8 9 10 10 10 10 13 15 15 15 15 Average Carried 10 | 3 7 8 9 10 10 5 6 14 13 14 7 Final Capacity 15 | 8 8 10 10 10 10 5 15 15 15 15 5 Final Carried 15 | 6 8 9 10 10 10 5 13 15 15 14 2 Class Distribution -------------------- 75% | Mutant 14% | Derelict-Mutant 9% | Scavenger-Mutant Dominant Class ---------------- Mutant | -10/Materials Mutant | -10/Mines Mutant | -10/Exiles Mutant | -9/Mines Mutant | -8/Materials Mutant | -8/Storage Mutant | -7/Factory Mutant | -7/Lower Caves Mutant | -7/Lower Caves Derelict-Mutant | -7/Zion Scavenger-Mutant | -7/Deep Caves Resources | -11 -10 -10 -10 -9 -8 -8 -7 -7 -7 -7 -7 ----------- Run | Yrd Mat Min Exi Min Mat Sto Fac Low Low Zio Dee Matter Collected 1814 | 196 . 365 . 125 138 377 118 73 141 83 198 Remotely . | . . . . . . . . . . . . Salvage Created 1834 | 24 . 269 . 171 297 298 248 . 90 . 437 Parts 99 | 2 . 19 . 13 14 17 12 . 6 . 16 Haulers Intercepted 2 | . . . . . . 2 . . . . . Recyclers Shooed 1 | . . . . 1 . . . . . . . Parts Field Recycled . | . . . . . . . . . . . . Retrieved Matter . | . . . . . . . . . . . . Parts Self-Destructed 8 | . . . . . . . . 5 3 . . Prevented 6 | . . . . . . . . 5 1 . . Parts Restored . | . . . . . . . . . . . . Kills | -11 -10 -10 -10 -9 -8 -8 -7 -7 -7 -7 -7 ------- Run | Yrd Mat Min Exi Min Mat Sto Fac Low Low Zio Dee Combat Hostiles Destroyed 33 | . . 4 . 7 8 3 2 . 3 . 6 Melee 3 | . . . . . 1 . 2 . . . . Guns 20 | . . 4 . 7 1 2 . . . . 6 Cannons 2 | . . . . . 2 . . . . . . AOE 8 | . . . . . 4 1 . . 3 . . Classes Destroyed 13 | 1 . 5 . . 2 2 1 . . . 2 Worker 5 | 1 . . . . . 3 1 . . . . Builder 2 | . . 1 . 1 . . . . . . . Tunneler 1 | . . 1 . . . . . . . . . Hauler 2 | . . . . . . 2 . . . . . Recycler 3 | . . 1 . 1 . . 1 . . . . Mechanic 1 | . . . . . . 1 . . . . . Swarmer 14 | . . 2 . 7 . 2 . . 3 . . Grunt 8 | . . . . . 7 1 . . . . . Brawler 1 | . . . . . 1 . . . . . . Sentry 3 | . . 2 . . . . 1 . . . . Programmer 1 | . . . . . . . 1 . . . . Z-Light 2 | . . . . . . . . . . . 2 Assembled 3 | . . . . . . . . . . . 3 Thug 1 | . . . . . . . . . . . 1 Savage 1 | . . . . . . . . . . . 1 Best Kill Streak 8 | 1 . 2 . 8 4 2 2 . 3 . 3 Combat Bots Only 5 | . . 2 . 5 4 1 1 . 3 . 3 Max Kills in Single Turn 4 | 1 . 1 . 1 4 2 1 . 2 . 2 Gunslinging 1 | . . . . . . . . . . . 1 Exploded 4 | . . . . . 4 1 . . 2 . . Melee 1 | . . . . . 1 . 1 . . . . Uniques/NPCs Destroyed 1 | . . . . . . . . . . . 1 Z-Imprinter (-7/Deep Caves) Combat | -11 -10 -10 -10 -9 -8 -8 -7 -7 -7 -7 -7 -------- Run | Yrd Mat Min Exi Min Mat Sto Fac Low Low Zio Dee Hostile Shots Fired 419 | . . 46 . 68 27 97 41 2 53 . 85 Missed 110 | . . 9 . 17 3 23 10 1 24 . 23 Hits 309 | . . 37 . 51 24 74 31 1 29 . 62 Melee 23 | . . . . . 1 12 1 . 6 . 3 Projectile 286 | . . 37 . 51 23 62 30 1 23 . 59 Critical Strikes 7 | . . 2 . . 1 4 . . . . . Damage Taken 5808 | . . 516 . 403 581 1337 527 32 410 . 2002 Core 1374 | . . 82 . 73 61 446 37 . 57 . 618 Absorbed by Shields 11 | . . . . . . 11 . . . . . Redirected to Shielding 238 | . . . . . 105 45 . . . . 88 Ignored by Resistances 132 | . . . . . . . . . . . 132 Regen/Repaired (Parts) 341 | . . . . . . . . . . 341 . Core Remaining (%) 48 | 100 . . . 38 . 7 . . . . . Volleys Fired 155 | 3 . 23 . 25 19 14 2 1 11 . 57 Largest 2 | 2 . 2 . 2 2 2 2 1 2 . 2 Hottest 136 | 60 . 63 . 63 105 136 90 . 68 . 123 Shots Fired 291 | 6 . 45 . 50 37 29 4 1 19 . 100 Gun 255 | 6 . 45 . 50 11 24 4 . 15 . 100 Cannon 28 | . . . . . 26 2 . . . . . Launcher 7 | . . . . . . 3 . . 4 . . Special 1 | . . . . . . . . 1 . . . Kinetic 117 | 3 . 23 . 35 23 7 . . 9 . 17 Thermal 126 | 3 . 22 . 15 14 9 . . . . 63 Explosive . | . . . . . . . . . . . . Electromagnetic 47 | . . . . . . 13 4 . 10 . 20 Robot Hit Streak 41 | 1 . 37 . 41 9 4 4 1 4 . 7 Robot Miss Streak 6 | 2 . 1 . 4 6 3 5 . 6 . 4 Penetration Max . | . . . . . . . . . . . . Secondary Targets 5 | . . . . 2 . . . . . . 3 Max Gunslinging Chain 1 | . . . . 1 . . . . . . 1 Shots Hit Robots 150 | 1 . 37 . 23 23 9 8 1 9 . 39 Core Hits 97 | 2 . 11 . 11 20 12 5 . 10 . 26 Critical Kills . | . . . . . . . . . . . . Critical Parts Destroyed 1 | . . 1 . . . . . . . . . Critical Strikes 5 | . . 1 . . . . . . . . 4 Burn 4 | . . . . . . . . . . . 4 Destroy 1 | . . 1 . . . . . . . . . Melee Attacks 10 | . . . . . 1 1 8 . . . . Impact . | . . . . . . . . . . . . Slashing 10 | . . . . . 1 1 8 . . . . Piercing . | . . . . . . . . . . . . Sneak Attacks 3 | . . . . . . . 3 . . . . Combat Hostiles . | . . . . . . . . . . . . Follow-up Attacks . | . . . . . . . . . . . . Damage Inflicted 3483 | 32 . 384 . 270 801 370 463 . 278 . 885 Guns 1841 | 32 . 384 . 270 95 138 37 . 145 . 740 Cannons 302 | . . . . . 302 . . . . . . Explosions 857 | . . . . . 351 228 . . 133 . 145 Melee 479 | . . . . . 53 . 426 . . . . Ramming 4 | . . . . . . 4 . . . . . Kinetic 902 | 8 . 173 . 168 254 31 . . 92 . 176 Thermal 1067 | 24 . 211 . 102 143 50 . . . . 537 Explosive 351 | . . . . . 351 . . . . . . Electromagnetic 680 | . . . . . . 285 37 . 186 . 172 Impact . | . . . . . . . . . . . . Slashing 479 | . . . . . 53 . 426 . . . . Piercing . | . . . . . . . . . . . . Highest Corruption 12 | . . . . . . 12 3 3 3 3 . Average Corruption 5 | . . . . . . 11 1 3 3 3 . Corruption Purged . | . . . . . . . . . . . . Corruption Blocked . | . . . . . . . . . . . . Effects 89 | . . . . . . 47 4 26 6 6 . Message Errors 14 | . . . . . . 5 . 8 . 1 . Matter Fused 19 | . . . . . . 7 2 7 1 2 . Heat Flow Errors 9 | . . . . . . 6 . 1 2 . . Energy Discharges 19 | . . . . . . 11 1 3 2 2 . Data Loss (minor) 13 | . . . . . . 7 1 4 . 1 . Data Loss (major) 4 | . . . . . . 2 . 2 . . . Misfires 5 | . . . . . . 4 . . 1 . . Alerts 4 | . . . . . . 3 . 1 . . . Misdirections 2 | . . . . . . 2 . . . . . Overload Shots . | . . . . . . . . . . . . Overflow Damage 21 | . . . . . . 17 4 . . . . Projectiles . | . . . . . . . . . . . . Explosions 17 | . . . . . . 17 . . . . . Melee 4 | . . . . . . . 4 . . . . Knockbacks 4 | . . . . . 4 . . . . . . Impact . | . . . . . . . . . . . . Kinetic 4 | . . . . . 4 . . . . . . Secondary . | . . . . . . . . . . . . Self-Inflicted Damage 309 | . . . . . 203 62 . . . . 44 Shots 6 | . . . . . 2 3 . . . . 1 Rammed 1 | . . . . . . 1 . . . . . Targets Rammed 1 | . . . . . . 1 . . . . . Kicked . | . . . . . . . . . . . . Crushed . | . . . . . . . . . . . . Highest Temperature 496 | 20 . 227 . 135 496 245 18 110 138 . 126 Average Temperature 92 | 15 . 83 . 79 222 70 8 68 34 . 39 Received Heat Transfer 1339 | . . 171 . . 225 355 78 . 48 . 462 Effects 6 | . . . . . 6 . . . . . . Shutdowns 1 | . . . . . 1 . . . . . . Short Circuit 1 | . . . . . 1 . . . . . . Damage (major) 4 | . . . . . 4 . . . . . . Siege Activations . | . . . . . . . . . . . . Martial Activations . | . . . . . . . . . . . . Shielding Activations . | . . . . . . . . . . . . Robots Disrupted . | . . . . . . . . . . . . Combat Hostiles . | . . . . . . . . . . . . Robots Corrupted . | . . . . . . . . . . . . Combat Hostiles . | . . . . . . . . . . . . Parts Fried . | . . . . . . . . . . . . Impact Corruptions . | . . . . . . . . . . . . Robots Melted . | . . . . . . . . . . . . Combat Hostiles . | . . . . . . . . . . . . Parts Melted 2 | . . . . . . . . . . . 2 Heat Transferred 2066 | 50 . 475 . 225 259 111 . . . . 946 Parts Sabotaged . | . . . . . . . . . . . . Parts Stolen 3 | . . . . . . . . . 3 . . Parts Stripped . | . . . . . . . . . . . . Power Chain Reactions 2 | . . . . . . . . . 1 . 1 Alert | -11 -10 -10 -10 -9 -8 -8 -7 -7 -7 -7 -7 ------- Run | Yrd Mat Min Exi Min Mat Sto Fac Low Low Zio Dee Maximum Alert Level 1 | . . . . . . 1 . . . . . Low Security (%) 98 | 100 100 100 . 100 100 94 100 . . . . Level 1 1 | . . . . . . 5 . . . . . Level 2 . | . . . . . . . . . . . . Level 3 . | . . . . . . . . . . . . Level 4 . | . . . . . . . . . . . . Level 5 . | . . . . . . . . . . . . High Security . | . . . . . . . . . . . . Max Security . | . . . . . . . . . . . . Peak Influence 236 | 5 3 40 . 155 148 236 173 . . . . Initial 46 | . 3 . . . 3 33 46 . . . . Average 76 | . . 3 . 83 67 119 114 . . . . Influence Increases 2129 | 5 . 95 . 235 285 725 485 193 106 . . Destroy 0b10 Robot/C 1280 | . . 80 . 140 160 400 300 120 80 . . Destroy 0b10 Robot/NC 80 | 5 . 15 . 10 . 40 10 . . . . Destroy Leader 256 | . . . . 10 30 86 80 30 20 . . Allied During Kill 224 | . . . . . . 107 68 43 6 . . Successful Hack 37 | . . . . . 7 14 16 . . . . Disable Machine 90 | . . . . . 45 45 . . . . . Destroy Structure 42 | . . . . . 28 3 11 . . . . Lose Combat Pursuer 120 | . . . . 75 15 30 . . . . . Influence Decreases 2129 | . 5 95 . 226 215 700 450 292 120 26 . Entered New Map 198 | . 2 . . . 6 46 58 52 8 26 . Time Decay 1601 | . 3 95 . 206 179 454 342 210 112 . . Lost Part 115 | . . . . 20 30 45 10 10 . . . Lost Ally 215 | . . . . . . 155 40 20 . . . Squads Dispatched 11 | . 1 . . . 2 4 4 . . . . Investigation 2 | . 1 . . . . 1 . . . . . Extermination 1 | . . . . . . . 1 . . . . Reinforcement 6 | . . . . . 2 1 3 . . . . Assault 2 | . . . . . . 2 . . . . . Garrison . | . . . . . . . . . . . . Intercept . | . . . . . . . . . . . . Searches Triggered . | . . . . . . . . . . . . Construction Impeded 1 | . . . . . . . 1 . . . . Haulers Reinforced . | . . . . . . . . . . . . Active Scanning Responses . | . . . . . . . . . . . . Cargo Convoy Interrupts . | . . . . . . . . . . . . Stealth | -11 -10 -10 -10 -9 -8 -8 -7 -7 -7 -7 -7 --------- Run | Yrd Mat Min Exi Min Mat Sto Fac Low Low Zio Dee Distress Signals 5 | . . . . . . 5 . . . . . Communications Jammed . | . . . . . . . . . . . . Distress Signals . | . . . . . . . . . . . . Times Spotted 101 | . 1 5 . 12 12 34 16 5 9 . 7 Peak Tracking Total 12 | . 1 3 . 8 4 12 4 3 3 . 3 Tactical Retreats 6 | . . . . 3 1 2 . . . . . Traps | -11 -10 -10 -10 -9 -8 -8 -7 -7 -7 -7 -7 ------- Run | Yrd Mat Min Exi Min Mat Sto Fac Low Low Zio Dee Traps Triggered 8 | . 1 . . . . 4 3 . . . . Indirectly . | . . . . . . . . . . . . Trap Hack Attempts . | . . . . . . . . . . . . Triggered . | . . . . . . . . . . . . Disarmed . | . . . . . . . . . . . . Reprogrammed . | . . . . . . . . . . . . Reused . | . . . . . . . . . . . . Traps Extracted . | . . . . . . . . . . . . Installed . | . . . . . . . . . . . . Triggered . | . . . . . . . . . . . . Machines | -11 -10 -10 -10 -9 -8 -8 -7 -7 -7 -7 -7 ---------- Run | Yrd Mat Min Exi Min Mat Sto Fac Low Low Zio Dee Machines Disabled 8 | . . . . . 3 3 . 1 . . 1 Max in Single Turn 2 | . . . . . 2 1 . . . . . Machines Repaired . | . . . . . . . . . . . . Machines Dismantled . | . . . . . . . . . . . . Machines Sabotaged . | . . . . . . . . . . . . Overloaded Fab Kills . | . . . . . . . . . . . . Hacking | -11 -10 -10 -10 -9 -8 -8 -7 -7 -7 -7 -7 --------- Run | Yrd Mat Min Exi Min Mat Sto Fac Low Low Zio Dee Machines Accessed 9 | . . . 2 . 1 5 1 . . . . Terminals 7 | . . . . . 1 5 1 . . . . Fabricators . | . . . . . . . . . . . . Repair Stations . | . . . . . . . . . . . . Recycling Units . | . . . . . . . . . . . . Scanalyzers . | . . . . . . . . . . . . Garrison Access . | . . . . . . . . . . . . Total Hacks 16 | . . . 3 . 2 8 3 . . . . Successful 9 | . . . 3 . 1 4 1 . . . . Failed 7 | . . . . . 1 4 2 . . . . Catastrophic 1 | . . . . . . 1 . . . . . Database Lockouts . | . . . . . . . . . . . . Manual 6 | . . . 1 . . . . . . 5 . Terminals 13 | . . . . . 2 8 3 . . . . Fabricators . | . . . . . . . . . . . . Repair Stations . | . . . . . . . . . . . . Recycling Units . | . . . . . . . . . . . . Scanalyzers . | . . . . . . . . . . . . Garrison Access . | . . . . . . . . . . . . Terminal Hacks 9 | . . . 3 . 1 4 1 . . . . Record 2 | . . . 2 . . . . . . . . Open Door 3 | . . . . . . 3 . . . . . Branch Access Points 2 | . . . . . 1 . 1 . . . . Zone Layout 1 | . . . . . . 1 . . . . . Proto ID Catalog 1 | . . . 1 . . . . . . . . Fabricator Hacks . | . . . . . . . . . . . . Repair Station Hacks . | . . . . . . . . . . . . Recycling Unit Hacks . | . . . . . . . . . . . . Scanalyzer . | . . . . . . . . . . . . Garrison Access Hacks . | . . . . . . . . . . . . Unauthorized Hacks . | . . . . . . . . . . . . Terminals . | . . . . . . . . . . . . Fabricators . | . . . . . . . . . . . . Repair Stations . | . . . . . . . . . . . . Recycling Units . | . . . . . . . . . . . . Scanalyzers . | . . . . . . . . . . . . Garrison Access . | . . . . . . . . . . . . Data Cores Recovered . | . . . . . . . . . . . . Used . | . . . . . . . . . . . . Hacking Detections 2 | . . . . . . 1 1 . . . . Full Trace Events 1 | . . . . . . 1 . . . . . Feedback Events . | . . . . . . . . . . . . Feedback Blocked . | . . . . . . . . . . . . Robot Schematics Acquired 2 | . . . . . . . . . . 2 . Robots Built . | . . . . . . . . . . . . Authchips . | . . . . . . . . . . . . Time . | . . . . . . . . . . . . Total Robot Build Rating . | . . . . . . . . . . . . Part Schematics Acquired 15 | . . . . . . . . . . 15 . Parts Built . | . . . . . . . . . . . . Authchips . | . . . . . . . . . . . . Time . | . . . . . . . . . . . . Total Part Build Rating . | . . . . . . . . . . . . Part Studies Acquired . | . . . . . . . . . . . . Parts Repaired . | . . . . . . . . . . . . Time . | . . . . . . . . . . . . Parts Recycled . | . . . . . . . . . . . . Recycled Matter . | . . . . . . . . . . . . Retrieved Matter . | . . . . . . . . . . . . Retrieved Components . | . . . . . . . . . . . . Parts Scanalyzed . | . . . . . . . . . . . . Part Schematics Acquired . | . . . . . . . . . . . . Parts Damaged . | . . . . . . . . . . . . Bothacking | -11 -10 -10 -10 -9 -8 -8 -7 -7 -7 -7 -7 ------------ Run | Yrd Mat Min Exi Min Mat Sto Fac Low Low Zio Dee Used RIF Installer . | . . . . . . . . . . . . Robots Hacked . | . . . . . . . . . . . . Non-combat . | . . . . . . . . . . . . Combat . | . . . . . . . . . . . . Robot Hacks Applied . | . . . . . . . . . . . . Relay Couplers Released . | . . . . . . . . . . . . Fabnet Peak Effective % . | . . . . . . . . . . . . Robots Rewired . | . . . . . . . . . . . . Allies Hacked . | . . . . . . . . . . . . Hacks Repelled . | . . . . . . . . . . . . Allies | -11 -10 -10 -10 -9 -8 -8 -7 -7 -7 -7 -7 -------- Run | Yrd Mat Min Exi Min Mat Sto Fac Low Low Zio Dee Total Allies 6 | . . . . . . 2 . 1 . 3 . Largest Group 4 | . . . . . . 2 . 1 1 4 4 Highest-Rated Group 156 | . . . . . . 62 . 85 85 156 156 Highest-Rated Ally 85 | . . . . . . 31 . 85 85 85 85 Total Orders 26 | . . . . . . 11 9 6 . . . STAY 1 | . . . . . . . . 1 . . . FOLLOW 1 | . . . . . . . . 1 . . . RETURN 24 | . . . . . . 11 9 4 . . . Ally Attacks 295 | . . . . . . 114 73 47 20 . 41 Total Damage 5804 | . . . . . . 1986 1308 944 950 . 616 Kills 45 | . . . . . . 20 13 7 1 . 4 Allies Corrupted . | . . . . . . . . . . . . Allies Melted 1 | . . . . . . . . . . . 1 Field Lobotomies 1 | . . . . . . . . 1 . . . Intel | -11 -10 -10 -10 -9 -8 -8 -7 -7 -7 -7 -7 ------- Run | Yrd Mat Min Exi Min Mat Sto Fac Low Low Zio Dee Active Infowar (turns) 1072 | . . . . . . . . . . 819 253 Seismic 1072 | . . . . . . . . . . 819 253 Robot Analysis Total . | . . . . . . . . . . . . Derelict Logs Recovered 4 | . . 2 . 1 . . . . 1 . . Drone Launches 107 | . . . . . . 44 43 20 . . . Drone Recoveries 91 | . . . . . . 37 41 13 . . . Exploration | -11 -10 -10 -10 -9 -8 -8 -7 -7 -7 -7 -7 ------------- Run | Yrd Mat Min Exi Min Mat Sto Fac Low Low Zio Dee Turns Passed 10139 | 109 159 899 689 425 459 1379 760 1279 770 2200 1011 Spaces Moved 4715 | 56 95 515 449 288 192 337 402 545 406 887 543 Core 10 | 3 . . . . . 4 . . . . 3 Treads 2143 | 53 95 515 348 . . . . . 149 887 96 Legs 1375 | . . . 101 288 192 333 . . 17 . 444 Wheels 1187 | . . . . . . . 402 545 240 . . Hover . | . . . . . . . . . . . . Flight . | . . . . . . . . . . . . Fastest Speed 50 | 50 160 160 120 120 120 120 130 205 115 240 120 Average Speed 191 | 154 160 160 151 120 184 344 162 205 175 240 147 Slowest Speed 1350 | 160 160 160 190 120 260 1350 190 205 260 240 400 Overloaded Moves . | . . . . . . . . . . . . Propulsion Burnouts . | . . . . . . . . . . . . Robots Hopped . | . . . . . . . . . . . . Potential Cave-ins 6 | . . . . . . . . . . . 6 Cave-ins Triggered . | . . . . . . . . . . . . Exploration Rate (%) 52 | 5 23 96 70 59 15 54 11 93 60 82 56 Regions Visited 11 Branch Regions 8 Pre-discovered Areas 1 | . . . 1 . . . . . . . . Known Exits Taken 4 | . . 1 . . 1 1 1 . . . . Unknown Exits Taken 7 | 1 1 . 1 1 . . . 1 1 1 . Scrap Searched 15 | . . 3 . 1 . . . 3 4 4 . Spaces Dug 4 | . . . . . . . 1 . . . 3 Terrain Destroyed 57 | . . . . . 29 . 1 . 6 . 21 Melee 1 | . . . . . . . 1 . . . . Projectile 9 | . . . . . . . . . . . 9 AOE 47 | . . . . . 29 . . . 6 . 12 Terrain Rammed . | . . . . . . . . . . . . Walls Destroyed . | . . . . . . . . . . . . Machines Disabled . | . . . . . . . . . . . . Actions | -11 -10 -10 -10 -9 -8 -8 -7 -7 -7 -7 -7 --------- Run | Yrd Mat Min Exi Min Mat Sto Fac Low Low Zio Dee Total 5554 | 70 108 549 463 322 255 526 497 704 444 960 656 Wait 452 | . . 2 . 1 22 125 60 155 9 57 21 Move 4704 | 55 94 514 448 287 191 336 401 544 405 886 543 Hop . | . . . . . . . . . . . . Pick Up 49 | 6 7 1 4 . . 2 12 2 6 3 6 Fast Attach 64 | 6 . 1 1 3 10 23 5 . 2 3 10 Attach 12 | . . 1 1 . . . . . 4 2 4 Detach 2 | . . . . . . . . . 1 1 . Swap 29 | . 1 4 . 2 6 2 3 2 2 3 4 Drop 64 | . 6 3 9 4 6 13 6 . 1 5 11 Fire 155 | 3 . 23 . 25 19 14 2 1 11 . 57 Melee 10 | . . . . . 1 1 8 . . . . Ram 1 | . . . . . . 1 . . . . . Kick . | . . . . . . . . . . . . Crush . | . . . . . . . . . . . . Escape Stasis 9 | . . . . . . 9 . . . . . Rewire 3 | . . . . . . . . . 3 . . Trap . | . . . . . . . . . . . . Miscellaneous . | . . . . . . . . . . . . Route ------- -11/Scrapyard -10/Materials -10/Mines (discovered 4 exits: [*Mat x2] / *Exi / [*Sub]) -10/Exiles -9/Mines -8/Materials (discovered 4 exits: Fac x2 / *Sto x2) -8/Storage -7/Factory (discovered 3 exits: [*Fac] / *Low x2) -7/Lower Caves -7/Lower Caves (discovered 2 exits: [*Fac] / *Zio) -7/Zion -7/Deep Caves History --------- Turn | Location | Event 12 | -11/Scrapyard | Discovered new exit (range 16) 110 | -11/Scrapyard | Entered Materials 251 | -10/Materials | Discovered new exit (range 9) 269 | -10/Materials | Entered Mines 278 | -10/Mines | Met a Derelict bent on vengeance 307 | -10/Mines | Found a Scrap Suit stashed away for nefarious purposes 315 | -10/Mines | Build established: Mutant 382 | -10/Mines | Discovered new exit (range 6) 423 | -10/Mines | Discovered new exit (range 11) 605 | -10/Mines | Found DCF Scrap (7 items) 861 | -10/Mines | Identified exit to Exiles 891 | -10/Mines | Learned 4 Materials zone layouts 1050 | -10/Mines | Discovered new exit (range 7) 1077 | -10/Mines | Deemed a non-threat by the Exiles lab entrance 1168 | -10/Mines | Entered Exiles 1212 | -10/Exiles | Met 8R-AWN 1236 | -10/Exiles | Met EX-HEX 1277 | -10/Exiles | Met EX-BIN 1300 | -10/Exiles | Aligned with FarCom system 1301 | -10/Exiles | Given EX-Vault access code 1344 | -10/Exiles | Opened EX-Vault 1364 | -10/Exiles | Found Longsword +1 1392 | -10/Exiles | Found Field Lobotomy Kit 1430 | -10/Exiles | Warned to stay clear of 0b10 Research branches 1472 | -10/Exiles | Met EX-DEC 1483 | -10/Exiles | Learned location of Zion (-7) 1737 | -10/Exiles | Found Army-in-a-Box 1843 | -10/Exiles | Discovered new exit (range 14) 1857 | -10/Exiles | Stole three prototypes: Army-in-a-Box, Field Lobotomy Kit, Longsword +1 1857 | -10/Exiles | Entered Mines 1897 | -9/Mines | Core integrity fell below 50% 2266 | -9/Mines | Discovered new exit (range 4) 2282 | -9/Mines | Entered Materials 2282 | -8/Materials | Evolved 4 slots: Utility x4 2283 | -8/Materials | Identified exit to Factory 2455 | -8/Materials | Identified exit to Storage 2637 | -8/Materials | Lost 3 parts (1n2u) 2741 | -8/Materials | Entered Storage 2743 | -8/Storage | FarCom data flow suspended 2854 | -8/Storage | Met a pair of Derelict thieves 2972 | -8/Storage | Core integrity fell below 50% 2973 | -8/Storage | System corruption reached 10% 2976 | -8/Storage | Released all parts (5) 2977 | -8/Storage | Core integrity fell below 20% 2999 | -8/Storage | Lost 6 parts (1p2n3w) 3036 | -8/Storage | Lost 5 allies 3451 | -8/Storage | Build established: Scavenger-Mutant 3620 | -8/Storage | Found Prototype Launcher 3620 | -8/Storage | Identified Gui. EMP Blaster 3712 | -8/Storage | Discovered exit to Factory (range 16) 3785 | -8/Storage | Build established: Mutant 4120 | -8/Storage | Entered Factory 4120 | -7/Factory | Evolved 2 slots: Utility x2 4239 | -7/Factory | Discovered new exit (range 7) 4343 | -7/Factory | Identified exit to Lower Caves 4880 | -7/Factory | Entered Lower Caves 5053 | -7/Lower Caves | Spotted B-75 Beast 5058 | -7/Lower Caves | Assimilated B-75 Beast with FLK Orb 6133 | -7/Lower Caves | Discovered new exit (range 5) 6159 | -7/Lower Caves | Entered another Lower Caves area 6159 | -7/Lower Caves | Accompanied by 6 allies 6159 | -7/Lower Caves | Discovered new exit (range 9) 6160 | -7/Lower Caves | Army-in-a-Box stolen by Master Thief 6161 | -7/Lower Caves | Encountered a Master Thief 6161 | -7/Lower Caves | Encountered a Master Thief 6162 | -7/Lower Caves | Field Lobotomy Kit stolen by Master Thief 6163 | -7/Lower Caves | Encountered a Master Thief 6173 | -7/Lower Caves | Longsword +1 stolen by Master Thief 6473 | -7/Lower Caves | Spotted B-75 Beast 6523 | -7/Lower Caves | Allies destroyed B-75 Beast 6845 | -7/Lower Caves | Discovered new exit (range 6) 6929 | -7/Lower Caves | Entered Zion 6929 | -7/Zion | Accompanied by 1 ally 6963 | -7/Zion | Given the Hacking Drone Bay 6964 | -7/Zion | Found Prototype Device 7292 | -7/Zion | System corruption cleaned by Quarantine Array 8036 | -7/Zion | Acquired unknown access codes intercepted by a Zionite 8243 | -7/Zion | Build established: Derelict-Mutant 8259 | -7/Zion | Gained Derelict followers 8901 | -7/Zion | Visited the Megawrench Repair Shop 8901 | -7/Zion | Megawrench repaired 9 parts 9021 | -7/Zion | Opened final containment barrier to the Deep Caves 9055 | -7/Zion | Discovered new exit (range 5) 9060 | -7/Zion | Saw the warning signs outside the Deep Caves entrance 9129 | -7/Zion | Entered Deep Caves 9129 | -7/Deep Caves | Accompanied by 4 allies 9348 | -7/Deep Caves | Z-Facility disabled 9355 | -7/Deep Caves | Attacked by Z-Imprinter 9413 | -7/Deep Caves | Core integrity fell below 50% 9420 | -7/Deep Caves | Destroyed Z-Imprinter 9440 | -7/Deep Caves | Lost 4 parts (1n2u1w) 9447 | -7/Deep Caves | Found Prototype Device 9447 | -7/Deep Caves | Identified Zio. Metafield Generator 9454 | -7/Deep Caves | Found Prototype Protection 9454 | -7/Deep Caves | Identified Zio. Weapon Casing 9724 | -7/Deep Caves | Build established: Scavenger-Mutant 9748 | -7/Deep Caves | Found Zio. Weapon Casing 10106 | -7/Deep Caves | Spotted Golem 10138 | -7/Deep Caves | Core integrity fell below 20% 10140 | -7/Deep Caves | Destroyed by Golem with Assembled Focal Cannon Last Messages --------------- 09873_ Acquired 10 matter. 09877_ Acquired Arc Projector. 09879_ Acquired 10 matter. 09884_ Acquired Proton Missile Launcher. 09892_ Dropped Lgt. Nuclear Core. 09893_ Acquired Prototype Hover Unit. 10074_ as-02906 destroyed. 10074_ Switching to secondary target: as-17490. 10074_ as-17490 destroyed. 10080_ as-51703 destroyed. 10107_ Golem: "DSI9AT1D G8OHIBQ29FWG 26R186 QD12WHW8W33 TDK1 81FTS" 10108_ Imp. Aluminum Leg destroyed. 10132_ Chain reaction triggered in Prototype Reactor. 10132_ SL-HCG(g) destroyed. 10133_ Golem GOLEM Unit beginning Prototype Reactor integration. 10134_ Imp. Carbon-fiber Leg destroyed. 10134_ Zio. Light Carapace destroyed. 10136_ Identified Zio. Glidesys I. 10137_ Imp. Deuterium Engine destroyed. 10140_ Exp. Heat Sink destroyed. Map ----- +----------------------------------------------------+ | ???????????????????????????????????????????????? | | ???????????????????????????????????????????????? | | ?????????????????????????????????? ??????????? | | ?????????????????????????????????? ??????????? | | ????????????????????????? ?????? ??????????? | | ?????????????????????? ??????? ##??????##? | | ???????????????????? ! ??????? #????## #? | | ?????????????????? [ ! #?????? #???? ? | | ??????????????? = ! #??????# #???? ? | | ????????????? #??????# #????# #? | | ??????????? #??????# #????# #? | | ??????????? ##?????# #????# #? | | ?????????? #???### #????# #? | | ?????????? #??## ##???# #? | | ????????? = #?## #???# #? | | ????????? M ### ##### ## | | ????????? = * % % # | | ????????""" = * * % # | | ????????" b =* ###### | | ?????????" # #????# | | ????????" % # "" #????#### | | ?????????" ## """ #???????? | | ????????" ;G; ## " ##???????? | | ????????" #### ;; ;; ### ####????????? | | ????????""" ???????# ;; ;;##?#######???????????? | | ???????????????????#?#;@;#?????????????????????? | | ?????????????????????###;#?????????????????????? | | | | | | | | | | | | | | | | | | | | | | | | | | | | | | | | | | | | | | | | | | | | | | | +----------------------------------------------------+ Best States ------------- Heat Dissipation 74 Coolant Potential 65 Energy Generation 27 Energy Capacity 290 Matter Stores 300 Matter Capacity 500 Sight Range 16 Terrain Scan Density 10 Base Temperature (-) 100 Armor Coverage 400 Resistance: TH 10 Propulsion Shielding 66 Utility Shielding 66 Weapon Shielding 100 Evasion (%) 63 Targeting Accuracy 8 Core Analysis 6 Recoil Reduction 2 Item Schematics ----------------- Falx | -7/Zion | Archive Adv. Terrain Scan Processor | -7/Zion | Archive Enh. Optical Array | -7/Zion | Archive Energy Filter | -7/Zion | Archive Component Analysis Suite | -7/Zion | Archive Imp. Carbon-fiber Leg | -7/Zion | Archive IFF Parser | -7/Zion | Archive Imp. Kinecellerator | -7/Zion | Archive Hpw. Shock Rifle | -7/Zion | Archive Powered Hammer | -7/Zion | Archive Flexi-carbon Leg | -7/Zion | Archive Hvy. Ion Cannon | -7/Zion | Archive Energy Well | -7/Zion | Archive Med. Reactive Plating | -7/Zion | Archive Antigrav System | -7/Zion | Archive Robot Schematics ------------------ L-41 Fighter | -7/Zion | Archive S-27 Virus | -7/Zion | Archive Fabricated ------------ Nothing Repaired ---------- Nothing Studied --------- None Alien Tech Used ----------------- None Achievements -------------- None Challenges ------------ None Game ------ Seed HelicalCooledShell Manual? 0 Play Time 00:39:25 Cumulative 492.9 hours Start 2026.05.03 @ 15:36:47 End 2026.05.03 @ 16:16:17 Sessions 1 Manual Loads 0 Difficulty Rogue Special Mode None Game No. 419 Rogue 383 Adventurer 36 Explorer 0 Win Type - Total 21 Types 9/0/11/0/0/0/1/0/0/0 Lore% 73 Gallery% 85 Achievement% 70 Wizard Run 0 Options --------- Layout 0 ASCII 0 Keyboard 0 Movement Mouse Keybinds 0 Fullscreen 1 Font 18/SmallcapsGlow Map View 76x50 Zoom Use 0% Tactical HUD 1 Map Filters NONE Filters NONE Steam 1 RUN: 47b0cb81-1b0c-4373-bfca-1df2afa1ad2d